[Event "11th LCC Super Blitz 2019"]
[Site "London"]
[Date "2019.12.08"]
[Round "10.11"]
[White "Yeo, Klaus Lucas"]
[Black "Vikas Narayan S P"]
[Result "1-0"]
[ECO "C55"]
[WhiteElo "1176"]
[BlackElo "1026"]
[Annotator "NA"]
[PlyCount "111"]
[EventDate "2019.12.08"]
[EventType "swiss"]
[EventCountry "ENG"]
[SourceTitle "playchess.com"]
[Source "ChessBase"]
[SourceQuality "1"]
[TimeControl "180+2"]

1. e4 {[%emt 0:00:00]} e5 {[%emt 0:00:00]} 2. Nf3 {[%emt 0:00:00]} Nc6 {[%emt 0:00:00]} 3. Bc4 {[%emt 0:00:01]} d6 {[%emt 0:00:00]} 4. h3 {[%emt 0:00:02]} Nf6 {[%emt 0:00:03]} 5. d3 {[%emt 0:00:00]} Be7 {[%emt 0:00:01]} 6. Be3 {[%emt 0:00:03]} O-O {[%emt 0:00:03]} 7. O-O {[%emt 0:00:01]} a6 {[%emt 0:00:01]} 8. a3 {[%emt 0:00:01]} b5 {[%emt 0:00:01]} 9. Ba2 {[%emt 0:00:01]} Be6 {[%emt 0:00:05]} 10. Nc3 {[%emt 0:00:01]} d5 {[%emt 0:00:18]} 11. exd5 {[%emt 0:00:04]} Nxd5 {[%emt 0:00:03]} 12. Nxd5 {[%emt 0:00:01]} Bxd5 {[%emt 0:00:03]} 13. Bxd5 {[%emt 0:00:03]} Qxd5 {[%emt 0:00:04]} 14. b4 {[%emt 0:00:07]} Rad8 {[%emt 0:00:02]} 15. Qe2 {[%emt 0:00:05]} Bf6 {[%emt 0:00:08]} 16. Rad1 {[%emt 0:00:03]} Nd4 {[%emt 0:00:03]} 17. Nxd4 {[%emt 0:00:04]} exd4 {[%emt 0:00:04]} 18. Bf4 {[%emt 0:00:03]} Rfe8 {[%emt 0:00:02]} 19. Qd2 {[%emt 0:00:02]} c5 {[%emt 0:00:05]} 20. bxc5 {[%emt 0:00:02]} Qxc5 {[%emt 0:00:03]} 21. Ra1 {[%emt 0:00:09]} Rc8 {[%emt 0:00:07]} 22. Rfc1 {[%emt 0:00:03]} Re6 {[%emt 0:00:02]} 23. a4 {[%emt 0:00:04]} a5 {[%emt 0:00:09]} 24. axb5 {[%emt 0:00:07]} Qxb5 {[%emt 0:00:03]} 25. Rxa5 {[%emt 0:00:03]} Qe8 {[%emt 0:00:06]} 26. Raa1 {[%emt 0:00:13]} Bd8 {[%emt 0:00:05]} 27. Re1 {[%emt 0:00:02]} h6 {[%emt 0:00:16]} 28. Rxe6 {[%emt 0:00:02]} Qxe6 {[%emt 0:00:04]} 29. Re1 {[%emt 0:00:01]} Qd7 {[%emt 0:00:06]} 30. Re2 {[%emt 0:00:08]} Ra8 {[%emt 0:00:05]} 31. Kh2 {[%emt 0:00:05]} f6 {[%emt 0:00:10]} 32. Qb4 {[%emt 0:00:05]} g5 {[%emt 0:00:05]} 33. Qb3+ {[%emt 0:00:01]} Kg7 {[%emt 0:00:04]} 34. Bg3 {[%emt 0:00:03]} h5 {[%emt 0:00:02]} 35. f3 {[%emt 0:00:15]} h4 {[%emt 0:00:10]} 36. Bf2 {[%emt 0:00:03]} Bc7+ {[%emt 0:00:06]} 37. Kg1 {[%emt 0:00:01]} Qd6 {[%emt 0:00:04]} 38. Kf1 {[%emt 0:00:06]} Kg6 {[%emt 0:00:12]} 39. Qb1 {[%emt 0:00:06]} Qh2 {[%emt 0:00:05]} 40. Bg1 {[%emt 0:00:02]} Qd6 {[%emt 0:00:06]} 41. Re4 {[%emt 0:00:07]} Ba5 {[%emt 0:00:06]} 42. Rxd4 {[%emt 0:00:05]} Qc6 {[%emt 0:00:05]} 43. Rc4 {[%emt 0:00:05]} Qe6 {[%emt 0:00:04]} 44. Qd1 {[%emt 0:00:05]} Rb8 {[%emt 0:00:06]} 45. Re4 {[%emt 0:00:28]} Qd6 {[%emt 0:00:04]} 46. Ke2 {[%emt 0:00:04]} f5 {[%emt 0:00:02]} 47. Re3 {[%emt 0:00:11]} Bb6 {[%emt 0:00:05]} 48. d4 {[%emt 0:00:15]} Qc6 {[%emt 0:00:16]} 49. c3 {[%emt 0:00:09]} Ra8 {[%emt 0:00:04]} 50. Qd3 {[%emt 0:00:20]} Ra2+ {[%emt 0:00:08]} 51. Kf1 {[%emt 0:00:02]} Ra1+ {[%emt 0:00:06]} 52. Re1 {[%emt 0:00:02]} Qa4 {[%emt 0:00:03]} 53. Qe2 {[%emt 0:00:09]} Rxe1+ {[%emt 0:00:07]} 54. Qxe1 {[%emt 0:00:01]} Kf6 {[%emt 0:00:02]} 55. Bh2 {[%emt 0:00:03]} Qc4+ {[%emt 0:00:04]} 56. Kf2 {[%emt 0:00:05]} 1-0

[Event "11th LCC Super Blitz 2019"]
[Site "London"]
[Date "2019.12.08"]
[Round "10.12"]
[White "Ball, Charlie J"]
[Black "John, Joshua"]
[Result "1-0"]
[ECO "D02"]
[WhiteElo "1249"]
[BlackElo "1694"]
[Annotator "NA"]
[PlyCount "89"]
[EventDate "2019.12.08"]
[EventType "swiss"]
[EventCountry "ENG"]
[SourceTitle "playchess.com"]
[Source "ChessBase"]
[SourceQuality "1"]
[TimeControl "180+2"]

1. d4 {[%emt 0:00:00]} Nf6 {[%emt 0:00:00]} 2. Bf4 {[%emt 0:00:00]} d5 {[%emt 0:00:00]} 3. e3 {[%emt 0:00:01]} e6 {[%emt 0:00:01]} 4. c3 {[%emt 0:00:03]} c5 {[%emt 0:00:01]} 5. Nd2 {[%emt 0:00:06]} Nc6 {[%emt 0:00:01]} 6. Ngf3 {[%emt 0:00:01]} Be7 {[%emt 0:00:02]} 7. Bd3 {[%emt 0:00:01]} O-O {[%emt 0:00:02]} 8. Qb1 {[%emt 0:00:01]} h6 {[%emt 0:00:03]} 9. Ne5 {[%emt 0:00:04]} Nh5 {[%emt 0:00:08]} 10. Bg3 {[%emt 0:00:05]} Nxg3 {[%emt 0:00:13]} 11. hxg3 {[%emt 0:00:01]} Bf6 {[%emt 0:00:06]} 12. Ndf3 {[%emt 0:00:02]} Qc7 {[%emt 0:00:03]} 13. Nxc6 {[%emt 0:00:11]} bxc6 {[%emt 0:00:01]} 14. g4 {[%emt 0:00:01]} cxd4 {[%emt 0:00:03]} 15. exd4 {[%emt 0:00:02]} e5 {[%emt 0:00:06]} 16. dxe5 {[%emt 0:00:02]} Bxe5 {[%emt 0:00:01]} 17. g5 {[%emt 0:00:01]} Bf4 {[%emt 0:00:14]} 18. g3 {[%emt 0:00:10]} Qe7+ {[%emt 0:00:03]} 19. Kd1 {[%emt 0:00:15]} Bg4 {[%emt 0:00:10]} 20. gxh6 {[%emt 0:00:10]} Bxh6 {[%emt 0:00:09]} 21. Be2 {[%emt 0:00:10]} Rfe8 {[%emt 0:00:08]} 22. Qd3 {[%emt 0:00:17]} Qxe2+ {[%emt 0:00:29]} 23. Qxe2 {[%emt 0:00:06]} Rxe2 {[%emt 0:00:02]} 24. Kxe2 {[%emt 0:00:01]} Re8+ {[%emt 0:00:02]} 25. Kf1 {[%emt 0:00:04]} Bxf3 {[%emt 0:00:05]} 26. Rh4 {[%emt 0:00:02]} Rb8 {[%emt 0:00:12]} 27. b3 {[%emt 0:00:08]} Bg5 {[%emt 0:00:13]} 28. Ra4 {[%emt 0:00:05]} Rb7 {[%emt 0:00:14]} 29. Re1 {[%emt 0:00:03]} Bd2 {[%emt 0:00:08]} 30. Re8+ {[%emt 0:00:02]} Kh7 {[%emt 0:00:02]} 31. Rh4+ {[%emt 0:00:02]} Kg6 {[%emt 0:00:02]} 32. Rc8 {[%emt 0:00:08]} Rb6 {[%emt 0:00:10]} 33. Ra4 {[%emt 0:00:05]} Bxc3 {[%emt 0:00:15]} 34. Rxa7 {[%emt 0:00:04]} d4 {[%emt 0:00:03]} 35. Rd7 {[%emt 0:00:04]} Bg4 {[%emt 0:00:11]} 36. Rd6+ {[%emt 0:00:10]} f6 {[%emt 0:00:12]} 37. Rcxc6 {[%emt 0:00:06]} Rxc6 {[%emt 0:00:03]} 38. Rxc6 {[%emt 0:00:01]} Bb2 {[%emt 0:00:12]} 39. a4 {[%emt 0:00:06]} d3 {[%emt 0:00:01]} 40. Rd6 {[%emt 0:00:01]} Be2+ {[%emt 0:00:06]} 41. Kg2 {[%emt 0:00:04]} Bc3 {[%emt 0:00:05]} 42. Rd5 {[%emt 0:00:02]} d2 43. a5 {[%emt 0:00:03]} d1=Q {[%emt 0:00:04]} 44. Rxd1 Bxd1 {[%emt 0:00:01]} 45. a6 {[%emt 0:00:03]} 1-0

[Event "11th LCC Super Blitz 2019"]
[Site "London"]
[Date "2019.12.08"]
[Round "10.13"]
[White "Saidmurodov, Shahjahon"]
[Black "Patel, Zain"]
[Result "0-1"]
[ECO "B87"]
[WhiteElo "1812"]
[BlackElo "1253"]
[Annotator "NA"]
[PlyCount "65"]
[EventDate "2019.12.08"]
[EventType "swiss"]
[EventCountry "ENG"]
[SourceTitle "playchess.com"]
[Source "ChessBase"]
[SourceQuality "1"]
[TimeControl "180+2"]

1. e4 {[%emt 0:00:01]} c5 {[%emt 0:00:00]} 2. Nf3 {[%emt 0:00:01]} d6 {[%emt 0:00:00]} 3. d4 {[%emt 0:00:02]} cxd4 {[%emt 0:00:03]} 4. Nxd4 {[%emt 0:00:01]} Nf6 {[%emt 0:00:01]} 5. Nc3 {[%emt 0:00:01]} a6 {[%emt 0:00:01]} 6. Bc4 {[%emt 0:00:04]} e6 {[%emt 0:00:02]} 7. Bg5 {[%emt 0:00:08]} b5 {[%emt 0:00:03]} 8. Bb3 {[%emt 0:00:02]} b4 {[%emt 0:00:02]} 9. Nce2 {[%emt 0:00:07]} Nbd7 {[%emt 0:00:05]} 10. Ng3 {[%emt 0:00:09]} Be7 {[%emt 0:00:03]} 11. Bxe6 {[%emt 0:00:19]} fxe6 {[%emt 0:00:26]} 12. Nxe6 {[%emt 0:00:01]} Qa5 {[%emt 0:00:09]} 13. Nxg7+ {[%emt 0:00:04]} Kf7 {[%emt 0:00:11]} 14. N7f5 {[%emt 0:00:22]} b3+ {[%emt 0:00:18]} 15. c3 {[%emt 0:00:02]} Bb7 {[%emt 0:00:14]} 16. Qxb3+ {[%emt 0:00:14]} Kf8 {[%emt 0:00:05]} 17. Nxe7 {[%emt 0:00:07]} Kxe7 {[%emt 0:00:03]} 18. Nf5+ {[%emt 0:00:05]} Kd8 {[%emt 0:00:07]} 19. Bxf6+ {[%emt 0:00:05]} Nxf6 {[%emt 0:00:04]} 20. Qxb7 {[%emt 0:00:01]} Qc5 {[%emt 0:00:43]} 21. Qe7+ {[%emt 0:00:15]} Kc8 {[%emt 0:00:08]} 22. Nxd6+ {[%emt 0:00:02]} Qxd6 {[%emt 0:00:05]} 23. Qxd6 {[%emt 0:00:00]} Nxe4 {[%emt 0:00:02]} 24. Qc6+ {[%emt 0:00:02]} Kb8 {[%emt 0:00:03]} 25. Qxe4 {[%emt 0:00:02]} Ka7 {[%emt 0:00:03]} 26. O-O-O {[%emt 0:00:02]} Rad8 {[%emt 0:00:05]} 27. Qe7+ {[%emt 0:00:02]} Kb6 {[%emt 0:00:03]} 28. Rxd8 {[%emt 0:00:03]} Rxd8 {[%emt 0:00:01]} 29. Qxd8+ {[%emt 0:00:02]} Ka7 {[%emt 0:00:02]} 30. Re1 {[%emt 0:00:01]} a5 {[%emt 0:00:02]} 31. Qd6 {[%emt 0:00:07]} Kb7 {[%emt 0:00:06]} 32. Re7+ {[%emt 0:00:03]} Kc8 {[%emt 0:00:00]} 33. Qc7# {[%emt 0:00:01]} 0-1

[Event "11th LCC Super Blitz 2019"]
[Site "London"]
[Date "2019.12.08"]
[Round "10.13"]
[White "Pham, Catherine"]
[Black "Fisher, Neal"]
[Result "0-1"]
[ECO "C41"]
[WhiteElo "1280"]
[BlackElo "1522"]
[Annotator "NA"]
[PlyCount "104"]
[EventDate "2019.12.08"]
[EventType "swiss"]
[EventCountry "ENG"]
[SourceTitle "playchess.com"]
[Source "ChessBase"]
[SourceQuality "1"]
[TimeControl "180+2"]

1. e4 {[%emt 0:00:00]} e5 {[%emt 0:00:00]} 2. Nf3 {[%emt 0:00:01]} d6 {[%emt 0:00:01]} 3. Nc3 {[%emt 0:00:06]} c6 {[%emt 0:00:03]} 4. d4 {[%emt 0:00:05]} Nd7 {[%emt 0:00:05]} 5. Be3 {[%emt 0:00:08]} Ngf6 {[%emt 0:00:03]} 6. Bd3 {[%emt 0:00:11]} Be7 {[%emt 0:00:10]} 7. O-O {[%emt 0:00:03]} h6 {[%emt 0:00:08]} 8. Re1 {[%emt 0:00:26]} Qc7 {[%emt 0:00:09]} 9. dxe5 {[%emt 0:00:14]} dxe5 {[%emt 0:00:04]} 10. Bc4 {[%emt 0:00:04]} b5 {[%emt 0:00:06]} 11. Bb3 {[%emt 0:00:04]} a5 {[%emt 0:00:02]} 12. a3 {[%emt 0:00:02]} a4 {[%emt 0:00:01]} 13. Ba2 {[%emt 0:00:01]} Bb7 {[%emt 0:00:20]} 14. Qe2 {[%emt 0:00:06]} O-O {[%emt 0:00:07]} 15. Rad1 {[%emt 0:00:04]} Nc5 {[%emt 0:00:11]} 16. Bxc5 {[%emt 0:00:05]} Bxc5 {[%emt 0:00:02]} 17. h3 {[%emt 0:00:10]} Rad8 {[%emt 0:00:02]} 18. Nh2 {[%emt 0:00:15]} Rxd1 {[%emt 0:00:03]} 19. Rxd1 {[%emt 0:00:03]} Rd8 {[%emt 0:00:03]} 20. Re1 {[%emt 0:00:10]} Qb6 {[%emt 0:00:09]} 21. Rf1 {[%emt 0:00:05]} Bd4 {[%emt 0:00:07]} 22. Qf3 {[%emt 0:00:17]} Bxc3 {[%emt 0:00:20]} 23. bxc3 {[%emt 0:00:04]} Qc5 {[%emt 0:00:04]} 24. Re1 {[%emt 0:00:16]} Rf8 {[%emt 0:00:05]} 25. Ra1 {[%emt 0:00:14]} Rd8 {[%emt 0:00:07]} 26. Nf1 {[%emt 0:00:05]} Kf8 {[%emt 0:00:09]} 27. Bb1 {[%emt 0:00:09]} Qd6 {[%emt 0:00:09]} 28. Kh2 {[%emt 0:00:12]} Qd1 {[%emt 0:00:09]} 29. Qxd1 {[%emt 0:00:03]} Rxd1 {[%emt 0:00:02]} 30. Ng3 {[%emt 0:00:03]} c5 {[%emt 0:00:06]} 31. f3 {[%emt 0:00:09]} c4 {[%emt 0:00:06]} 32. Ne2 {[%emt 0:00:03]} Nh5 {[%emt 0:00:11]} 33. Ng3 {[%emt 0:00:03]} Nxg3 {[%emt 0:00:02]} 34. Kxg3 {[%emt 0:00:01]} g6 {[%emt 0:00:08]} 35. Kf2 {[%emt 0:00:01]} f5 {[%emt 0:00:03]} 36. exf5 {[%emt 0:00:03]} gxf5 {[%emt 0:00:01]} 37. Ke2 {[%emt 0:00:01]} Rg1 {[%emt 0:00:04]} 38. Kf2 {[%emt 0:00:01]} Rc1 {[%emt 0:00:08]} 39. Ke2 {[%emt 0:00:01]} e4 {[%emt 0:00:04]} 40. Kd2 {[%emt 0:00:02]} Rg1 {[%emt 0:00:03]} 41. Ke2 {[%emt 0:00:02]} Rxg2+ {[%emt 0:00:02]} 42. Kf1 {[%emt 0:00:01]} exf3 {[%emt 0:00:03]} 43. Ba2 {[%emt 0:00:02]} Rxc2 {[%emt 0:00:05]} 44. Re1 {[%emt 0:00:06]} Rxa2 {[%emt 0:00:06]} 45. Re5 {[%emt 0:00:02]} Rxa3 {[%emt 0:00:04]} 46. Rxf5+ {[%emt 0:00:02]} Kg7 {[%emt 0:00:00]} 47. Rxb5 {[%emt 0:00:04]} Be4 {[%emt 0:00:05]} 48. Rb7+ {[%emt 0:00:00]} Kf6 {[%emt 0:00:01]} 49. Rb6+ {[%emt 0:00:00]} Kg5 {[%emt 0:00:02]} 50. Rb5+ {[%emt 0:00:01]} Kf4 {[%emt 0:00:01]} 51. Rb4 {[%emt 0:00:02]} Kg3 {[%emt 0:00:01]} 52. Rxc4 {[%emt 0:00:02]} Ra1# {[%emt 0:00:03]} 0-1

[Event "11th LCC Super Blitz 2019"]
[Site "London"]
[Date "2019.12.08"]
[Round "10.14"]
[White "Essis, Essoh Jean Mathieu C"]
[Black "Thatte, Nandinee"]
[Result "0-1"]
[ECO "A48"]
[WhiteElo "1438"]
[BlackElo "1270"]
[Annotator "NA"]
[PlyCount "58"]
[EventDate "2019.12.08"]
[EventType "swiss"]
[EventCountry "ENG"]
[SourceTitle "playchess.com"]
[Source "ChessBase"]
[SourceQuality "1"]
[TimeControl "180+2"]

1. d4 {[%emt 0:00:01]} Nf6 {[%emt 0:00:00]} 2. Nf3 {[%emt 0:00:03]} g6 {[%emt 0:00:00]} 3. Bf4 {[%emt 0:00:03]} d5 {[%emt 0:00:01]} 4. Nbd2 {[%emt 0:00:08]} Bg7 {[%emt 0:00:02]} 5. Be5 {[%emt 0:00:03]} O-O {[%emt 0:00:07]} 6. e3 {[%emt 0:00:02]} Nc6 {[%emt 0:00:09]} 7. c3 {[%emt 0:00:04]} Nxe5 {[%emt 0:00:07]} 8. Nxe5 {[%emt 0:00:02]} Bf5 {[%emt 0:00:04]} 9. Qb3 {[%emt 0:00:20]} Rb8 {[%emt 0:00:10]} 10. Ndf3 {[%emt 0:00:13]} c6 {[%emt 0:00:12]} 11. Qa3 {[%emt 0:00:18]} a6 {[%emt 0:00:22]} 12. g3 {[%emt 0:00:01]} Be4 {[%emt 0:00:25]} 13. Bg2 {[%emt 0:00:02]} Nd7 {[%emt 0:00:03]} 14. O-O {[%emt 0:00:10]} Nxe5 {[%emt 0:00:07]} 15. dxe5 {[%emt 0:00:04]} Bxf3 {[%emt 0:00:03]} 16. Bxf3 {[%emt 0:00:03]} Bxe5 {[%emt 0:00:01]} 17. Rfd1 {[%emt 0:00:11]} Qc7 {[%emt 0:00:03]} 18. e4 {[%emt 0:00:04]} e6 {[%emt 0:00:06]} 19. exd5 {[%emt 0:00:06]} cxd5 {[%emt 0:00:06]} 20. Rd3 {[%emt 0:00:19]} Qc4 {[%emt 0:00:20]} 21. Rad1 {[%emt 0:00:07]} Bg7 {[%emt 0:00:06]} 22. b3 {[%emt 0:00:31]} Qc7 {[%emt 0:00:02]} 23. Rc1 {[%emt 0:00:10]} Rbc8 {[%emt 0:00:06]} 24. Qb2 {[%emt 0:00:17]} b5 {[%emt 0:00:06]} 25. Qc2 {[%emt 0:00:01]} Qb6 {[%emt 0:00:12]} 26. Qe2 {[%emt 0:00:11]} Rc7 {[%emt 0:00:08]} 27. Bg4 {[%emt 0:00:08]} Rfc8 {[%emt 0:00:04]} 28. Qd2 {[%emt 0:00:02]} b4 {[%emt 0:00:15]} 29. c4 {[%emt 0:00:03]} dxc4 {[%emt 0:00:04]} 0-1

[Event "11th LCC Super Blitz 2019"]
[Site "London"]
[Date "2019.12.08"]
[Round "11.1"]
[White "Howell, David Wl"]
[Black "Toh, Q Kane"]
[Result "1-0"]
[ECO "B10"]
[WhiteElo "2650"]
[BlackElo "1606"]
[Annotator "ChessBase"]
[PlyCount "62"]
[EventDate "2019.12.08"]
[EventType "swiss"]
[EventCountry "ENG"]
[SourceTitle "playchess.com"]
[Source "ChessBase"]
[SourceQuality "1"]
[TimeControl "180+2"]

1. e4 {[%emt 0:00:07]} c6 {[%emt 0:00:00]} 2. d3 {[%emt 0:00:04]} d5 {[%emt 0:00:00]} 3. Nd2 {[%emt 0:00:01]} e5 {[%emt 0:00:04]} 4. Ngf3 {[%emt 0:00:02]} Nd7 {[%emt 0:00:01]} 5. g3 {[%emt 0:00:01]} Ngf6 {[%emt 0:00:01]} 6. Bg2 {[%emt 0:00:01]} Bd6 {[%emt 0:00:01]} 7. O-O {[%emt 0:00:02]} O-O {[%emt 0:00:02]} 8. Qe2 {[%emt 0:00:19]} Qc7 {[%emt 0:00:01]} 9. a4 {[%emt 0:00:03]} b6 {[%emt 0:00:07]} 10. Nh4 {[%emt 0:00:06]} g6 {[%emt 0:00:17]} 11. Re1 {[%emt 0:00:19]} Re8 {[%emt 0:00:03]} 12. Nf1 {[%emt 0:00:03]} Bb7 {[%emt 0:00:08]} 13. Bh6 {[%emt 0:00:05]} Bf8 {[%emt 0:00:12]} 14. Qd2 {[%emt 0:00:08]} Rad8 {[%emt 0:00:09]} 15. exd5 {[%emt 0:00:03]} cxd5 {[%emt 0:00:09]} 16. c3 {[%emt 0:00:13]} Nc5 {[%emt 0:00:12]} 17. Bxf8 {[%emt 0:00:05]} Rxf8 {[%emt 0:00:11]} 18. d4 {[%emt 0:00:20]} Nce4 {[%emt 0:00:23]} 19. Qd1 {[%emt 0:00:16]} exd4 {[%emt 0:00:06]} 20. Qxd4 {[%emt 0:00:04]} Rfe8 {[%emt 0:00:08]} 21. Rad1 {[%emt 0:00:03]} Qc5 {[%emt 0:00:42]} 22. Ne3 {[%emt 0:00:02]} Bc6 {[%emt 0:00:15]} 23. Nf3 {[%emt 0:00:07]} Qxd4 {[%emt 0:00:05]} 24. Nxd4 {[%emt 0:00:05]} Bxa4 {[%emt 0:00:14]} 25. Ra1 {[%emt 0:00:01]} Bd7 {[%emt 0:00:03]} 26. Rxa7 {[%emt 0:00:02]} Nd2 {[%emt 0:00:05]} 27. Re2 {[%emt 0:00:15]} Nc4 {[%emt 0:00:02]} 28. Nxd5 {[%emt 0:00:01]} Nxd5 {[%emt 0:00:07]} 29. Rxd7 {[%emt 0:00:08]} Rxd7 {[%emt 0:00:05]} 30. Rxe8+ {[%emt 0:00:01]} Kg7 {[%emt 0:00:01]} 31. Re2 {[%emt 0:00:05]} Nf6 {[%emt 0:00:07]} 1-0

[Event "11th LCC Super Blitz 2019"]
[Site "London"]
[Date "2019.12.08"]
[Round "11.2"]
[White "Grover, Sahaj"]
[Black "Watson, Mikey J"]
[Result "1-0"]
[ECO "D90"]
[WhiteElo "2486"]
[BlackElo "1748"]
[Annotator "ChessBase"]
[PlyCount "57"]
[EventDate "2019.12.08"]
[EventType "swiss"]
[EventCountry "ENG"]
[SourceTitle "playchess.com"]
[Source "ChessBase"]
[SourceQuality "1"]
[TimeControl "180+2"]

1. d4 {[%emt 0:00:01]} d5 {[%emt 0:00:00]} 2. c4 {[%emt 0:00:00]} c6 {[%emt 0:00:00]} 3. Nc3 {[%emt 0:00:03]} Nf6 {[%emt 0:00:02]} 4. Nf3 {[%emt 0:00:01]} g6 {[%emt 0:00:01]} 5. cxd5 {[%emt 0:00:01]} cxd5 {[%emt 0:00:01]} 6. Bf4 {[%emt 0:00:01]} a6 {[%emt 0:00:02]} 7. e3 {[%emt 0:00:04]} Bg7 {[%emt 0:00:02]} 8. Be2 {[%emt 0:00:05]} O-O {[%emt 0:00:01]} 9. h4 {[%emt 0:00:05]} Nc6 {[%emt 0:00:07]} 10. Ne5 {[%emt 0:00:02]} h5 {[%emt 0:00:02]} 11. Rc1 {[%emt 0:00:11]} Ne4 {[%emt 0:00:09]} 12. Nxc6 {[%emt 0:00:07]} bxc6 {[%emt 0:00:02]} 13. Nxe4 {[%emt 0:00:01]} dxe4 {[%emt 0:00:04]} 14. Rxc6 {[%emt 0:00:17]} Qa5+ {[%emt 0:00:02]} 15. Qd2 {[%emt 0:00:02]} Qxa2 {[%emt 0:00:04]} 16. O-O {[%emt 0:00:02]} Bb7 {[%emt 0:00:11]} 17. Rc7 {[%emt 0:00:01]} Bd5 {[%emt 0:00:10]} 18. Rxe7 {[%emt 0:00:07]} Rfc8 {[%emt 0:00:04]} 19. Rc1 {[%emt 0:00:05]} Bf8 {[%emt 0:00:09]} 20. Rec7 {[%emt 0:00:42]} Rcb8 {[%emt 0:00:03]} 21. R7c2 {[%emt 0:00:20]} Rb7 {[%emt 0:00:01]} 22. Kh2 {[%emt 0:00:17]} Kh7 {[%emt 0:00:08]} 23. f3 {[%emt 0:00:15]} Bb4 {[%emt 0:00:04]} 24. Qd1 {[%emt 0:00:11]} Bb3 {[%emt 0:00:05]} 25. Bc4 {[%emt 0:00:01]} Bxc4 {[%emt 0:00:05]} 26. Rxc4 {[%emt 0:00:02]} exf3 {[%emt 0:00:05]} 27. Qxf3 {[%emt 0:00:01]} Raa7 {[%emt 0:00:04]} 28. Be5 {[%emt 0:00:05]} f5 {[%emt 0:00:19]} 29. Rc8 {[%emt 0:00:02]} 1-0

[Event "11th LCC Super Blitz 2019"]
[Site "London"]
[Date "2019.12.08"]
[Round "11.2"]
[White "Petrov, Vladimir Sergeev"]
[Black "Pert, Nicholas"]
[Result "1/2-1/2"]
[ECO "B32"]
[WhiteElo "2355"]
[BlackElo "2560"]
[Annotator "ChessBase"]
[PlyCount "125"]
[EventDate "2019.12.08"]
[EventType "swiss"]
[EventCountry "ENG"]
[SourceTitle "playchess.com"]
[Source "ChessBase"]
[SourceQuality "1"]
[TimeControl "180+2"]

1. e4 {[%emt 0:00:38]} c5 {[%emt 0:00:01]} 2. Nf3 {[%emt 0:00:00]} Nc6 {[%emt 0:00:00]} 3. d4 {[%emt 0:00:00]} cxd4 4. Nxd4 {[%emt 0:00:00]} e5 {[%emt 0:00:00]} 5. Nb5 {[%emt 0:00:00]} d6 {[%emt 0:00:00]} 6. N1c3 {[%emt 0:00:00]} a6 {[%emt 0:00:01]} 7. Na3 {[%emt 0:00:00]} Be7 {[%emt 0:00:01]} 8. Nd5 {[%emt 0:00:00]} Nf6 {[%emt 0:00:02]} 9. Be3 {[%emt 0:00:00]} Nxd5 {[%emt 0:00:02]} 10. exd5 {[%emt 0:00:00]} Nd4 {[%emt 0:00:03]} 11. Bxd4 exd4 {[%emt 0:00:01]} 12. Qxd4 {[%emt 0:00:23]} O-O {[%emt 0:00:03]} 13. Bd3 {[%emt 0:00:23]} Bf6 {[%emt 0:00:06]} 14. Qb4 {[%emt 0:00:03]} Re8+ {[%emt 0:00:03]} 15. Kf1 {[%emt 0:00:05]} b5 {[%emt 0:00:33]} 16. c3 {[%emt 0:00:03]} Bb7 {[%emt 0:00:09]} 17. Rd1 {[%emt 0:00:11]} Qe7 {[%emt 0:00:14]} 18. Qf4 {[%emt 0:00:10]} Bxd5 {[%emt 0:00:30]} 19. Qf5 {[%emt 0:00:00]} Be4 {[%emt 0:00:01]} 20. Bxe4 {[%emt 0:00:00]} Qxe4 {[%emt 0:00:00]} 21. Qxe4 {[%emt 0:00:00]} Rxe4 {[%emt 0:00:01]} 22. Rxd6 {[%emt 0:00:02]} Rae8 {[%emt 0:00:03]} 23. g3 {[%emt 0:00:08]} b4 {[%emt 0:00:09]} 24. cxb4 {[%emt 0:00:17]} Rxb4 {[%emt 0:00:10]} 25. Rxa6 {[%emt 0:00:07]} Rxb2 {[%emt 0:00:02]} 26. Nc4 {[%emt 0:00:02]} Rb4 {[%emt 0:00:06]} 27. Ne3 {[%emt 0:00:05]} Bd4 {[%emt 0:00:04]} 28. Kg2 {[%emt 0:00:03]} Bxe3 29. fxe3 {[%emt 0:00:02]} Rb2+ {[%emt 0:00:10]} 30. Kf3 {[%emt 0:00:02]} h5 {[%emt 0:00:01]} 31. h4 {[%emt 0:00:07]} Rc2 {[%emt 0:00:05]} 32. Rd1 {[%emt 0:00:05]} Rc3 {[%emt 0:00:01]} 33. Re1 {[%emt 0:00:05]} g6 {[%emt 0:00:04]} 34. a4 {[%emt 0:00:03]} Ra3 {[%emt 0:00:02]} 35. Kf4 {[%emt 0:00:05]} Rc8 {[%emt 0:00:02]} 36. a5 {[%emt 0:00:11]} Rc5 {[%emt 0:00:06]} 37. Ra8+ {[%emt 0:00:05]} Kg7 {[%emt 0:00:01]} 38. a6 {[%emt 0:00:01]} Rf5+ {[%emt 0:00:11]} 39. Ke4 {[%emt 0:00:00]} Ra4+ {[%emt 0:00:02]} 40. Kd3 {[%emt 0:00:01]} Rd5+ {[%emt 0:00:01]} 41. Ke2 {[%emt 0:00:13]} Ra2+ {[%emt 0:00:06]} 42. Kf3 {[%emt 0:00:03]} Rf5+ {[%emt 0:00:01]} 43. Ke4 {[%emt 0:00:02]} Ra4+ {[%emt 0:00:01]} 44. Kd3 {[%emt 0:00:01]} Rfa5 {[%emt 0:00:11]} 45. Rc1 {[%emt 0:00:11]} Rxa6 {[%emt 0:00:01]} 46. Rxa6 Rxa6 {[%emt 0:00:01]} 47. Ke4 {[%emt 0:00:02]} Rf6 {[%emt 0:00:01]} 48. Rc7 {[%emt 0:00:04]} Rf2 {[%emt 0:00:01]} 49. Rc6 {[%emt 0:00:04]} Kf8 {[%emt 0:00:01]} 50. Rc7 {[%emt 0:00:02]} Kg7 {[%emt 0:00:02]} 51. Rc6 {[%emt 0:00:00]} Rf6 {[%emt 0:00:03]} 52. Rxf6 {[%emt 0:00:05]} Kxf6 {[%emt 0:00:01]} 53. Kf4 {[%emt 0:00:01]} Ke6 {[%emt 0:00:49]} 54. Ke4 {[%emt 0:00:02]} f6 {[%emt 0:00:04]} 55. Kf4 {[%emt 0:00:06]} Kd5 {[%emt 0:00:03]} 56. Kf3 {[%emt 0:00:08]} Ke5 {[%emt 0:00:00]} 57. e4 {[%emt 0:00:02]} g5 {[%emt 0:00:07]} 58. hxg5 {[%emt 0:00:07]} fxg5 {[%emt 0:00:01]} 59. Ke3 {[%emt 0:00:02]} h4 {[%emt 0:00:08]} 60. gxh4 {[%emt 0:00:02]} gxh4 {[%emt 0:00:00]} 61. Kf3 {[%emt 0:00:01]} h3 {[%emt 0:00:01]} 62. Kg3 {[%emt 0:00:01]} Kxe4 63. Kxh3 {[%emt 0:00:01]} 1/2-1/2